fUSD/lending_fUSD_20260203
["ID","MTS","AMOUNT","RATE_DAILY","PERIOD"]
[404435215,1770138603064,417.0,7.102e-05,2]
[404435216,1770138604239,7056.28,7.046e-05,2]
[404435228,1770138631563,-611.36272693,7.393e-05,2]
[404435229,1770138631573,-213.0,7.393e-05,2]
[404435230,1770138631582,-3472.812756,7.4e-05,2]
[404435231,1770138631591,-43.97869707,7.401e-05,2]
[404435232,1770138631602,-204.03600136,7.401e-05,2]
[404435233,1770138631614,-254.47974801,7.405e-05,2]
[404435234,1770138631623,-300.0,7.409e-05,2]
[404435235,1770138631632,-300.0,7.409e-05,2]
[404435236,1770138631641,-1200.0,7.409e-05,2]
[404435237,1770138631650,-300.0,7.409e-05,2]
[404435238,1770138631660,-1236.33838119,7.41e-05,2]
[404435239,1770138631669,-3262.71654873,7.41e-05,2]
[404435240,1770138631678,-5755.81873411,7.41e-05,2]
[404435241,1770138631688,-7592.0,7.425e-05,2]
[404435242,1770138631698,-151.0,7.441e-05,2]
[404435243,1770138631708,-465.44495692,7.443e-05,2]
[404435244,1770138631722,-734.55504308,7.443e-05,2]
[404435245,1770138631732,-47.43190029,7.443e-05,2]
[404435246,1770138631743,-102.56809971,7.443e-05,2]
[404435247,1770138631752,-500.0,7.443e-05,2]
[404435248,1770138631762,-500.0,7.443e-05,2]
[404435249,1770138631771,-539.36993022,7.443e-05,2]
[404435250,1770138631780,-256.13712146,7.443e-05,2]
[404435252,1770138631790,-551.41163843,7.443e-05,2]
[404435254,1770138631800,-790.8975409,7.443e-05,2]
[404435256,1770138631812,-458.86841978,7.443e-05,2]
[404435259,1770138631830,-247.61409749,7.443e-05,2]
[404435261,1770138631839,-593.43996251,7.443e-05,2]
[404435263,1770138631850,-903.94009566,7.443e-05,2]
[404435265,1770138631860,-101.80337653,7.443e-05,2]
[404435267,1770138631871,-1395.57668164,7.443e-05,2]
[404435268,1770138631880,-1497.38005817,7.443e-05,2]
[404435269,1770138631890,-1299.26114861,7.443e-05,2]
[404435270,1770138631903,-198.11890956,7.443e-05,2]
[404435271,1770138631912,-601.09109044,7.443e-05,2]
[404435272,1770138631923,-896.28896773,7.443e-05,2]
[404435273,1770138631932,-1052.82426983,7.443e-05,2]
[404435274,1770138632054,-444.55578834,7.443e-05,2]
[404435275,1770138632064,-431.33348523,7.443e-05,2]
[404435276,1770138632076,-1066.04657294,7.443e-05,2]
[404435277,1770138632086,-951.53900398,7.443e-05,2]
[404435278,1770138632308,-545.84105419,7.443e-05,2]
[404435279,1770138632317,-256.14157597,7.443e-05,2]
[404435280,1770138632329,-1231.20141571,7.443e-05,2]
[404435281,1770138632340,-10.03706649,7.443e-05,2]
[404435282,1770138632349,-1497.38005817,7.443e-05,2]
[404435283,1770138632359,-1497.38005817,7.443e-05,2]
[404435284,1770138632368,-1497.38005817,7.443e-05,2]
[404435285,1770138632377,-1497.38005817,7.443e-05,2]
[404435286,1770138632387,-1497.38005817,7.443e-05,2]
[404435287,1770138632396,-1497.38005817,7.443e-05,2]
[404435288,1770138632405,-330.42164902,7.443e-05,2]
[404435289,1770138632417,-1166.95840915,7.443e-05,2]
[404435290,1770138632426,-1497.38005817,7.443e-05,2]
[404435291,1770138632435,-1497.38005817,7.443e-05,2]
[404435292,1770138632445,-1497.38005817,7.443e-05,2]
[404435293,1770138632454,-1497.38005817,7.443e-05,2]
[404435294,1770138632463,-1497.38005817,7.443e-05,2]
[404435295,1770138632473,-1497.38005817,7.443e-05,2]
[404435296,1770138632482,-1497.38005817,7.443e-05,2]
[404435297,1770138632492,-1497.38005817,7.443e-05,2]
[404435298,1770138632501,-1497.38005817,7.443e-05,2]
[404435299,1770138632511,-1497.38005817,7.443e-05,2]
[404435300,1770138632521,-1497.38005817,7.443e-05,2]
[404435301,1770138632530,-1497.38005817,7.443e-05,2]
[404435302,1770138632539,-1497.38005817,7.443e-05,2]
[404435303,1770138632553,-1497.38005817,7.443e-05,2]
[404435304,1770138632562,-1497.38005817,7.443e-05,2]
[404435305,1770138632572,-1497.38005817,7.443e-05,2]
[404435306,1770138632581,-1497.38005817,7.443e-05,2]
[404435307,1770138632591,-1497.38005817,7.443e-05,2]
[404435308,1770138632600,-1497.38005817,7.443e-05,2]
[404435309,1770138632609,-1497.38005817,7.443e-05,2]
[404435310,1770138632619,-1497.38005817,7.443e-05,2]
[404435311,1770138632628,-1497.38005817,7.443e-05,2]
[404435312,1770138632638,-1497.38005817,7.443e-05,2]
[404435313,1770138632648,-1497.38005817,7.443e-05,2]
[404435314,1770138632657,-1497.38005817,7.443e-05,2]
[404435315,1770138632667,-1497.38005817,7.443e-05,2]
[404435316,1770138632676,-1497.38005817,7.443e-05,2]
[404435317,1770138632686,-1497.38005817,7.443e-05,2]
[404435318,1770138632695,-1497.38005817,7.443e-05,2]
[404435319,1770138632705,-1497.38005817,7.443e-05,2]
[404435320,1770138632714,-1497.38005817,7.443e-05,2]
[404435321,1770138632723,-5.32918732,7.443e-05,2]
[404435322,1770138632735,-1492.05087085,7.443e-05,2]
[404435323,1770138632744,-1497.38005817,7.443e-05,2]
[404435324,1770138632754,-1497.38005817,7.443e-05,2]
[404435325,1770138632763,-1497.38005817,7.443e-05,2]
[404435326,1770138632772,-1497.38005817,7.443e-05,2]
[404435327,1770138632781,-500.0,7.443e-05,2]
[404435328,1770138632790,-626.0635055,7.443e-05,2]
[404435329,1770138632801,-500.0,7.443e-05,2]
[404435330,1770138632811,-4218.76947008,7.443e-05,2]
[404435331,1770138632820,-4218.76947008,7.443e-05,2]
[404435332,1770138632829,-4218.76947008,7.443e-05,2]
[404435333,1770138632838,-4218.76947008,7.443e-05,2]
[404435334,1770138632848,-4218.76947008,7.443e-05,2]
[404435335,1770138632858,-4218.76947008,7.443e-05,2]
[404435336,1770138632868,-4218.76947008,7.443e-05,2]
[404435337,1770138632878,-4218.76947008,7.443e-05,2]
[404435338,1770138632890,-4218.76947008,7.443e-05,2]
[404435339,1770138632900,-2305.60895128,7.443e-05,2]
[404435343,1770138637796,-1913.1605188,7.443e-05,2]
[404435344,1770138637807,-4218.76947008,7.443e-05,2]
[404435345,1770138637817,-4218.76947008,7.443e-05,2]
[404435346,1770138637827,-4218.76947008,7.443e-05,2]
[404435347,1770138637836,-674.33705819,7.443e-05,2]
[404435348,1770138637851,-3544.43241189,7.443e-05,2]
[404435349,1770138637860,-4218.76947008,7.443e-05,2]
[404435350,1770138637869,-4218.76947008,7.443e-05,2]
[404435351,1770138637878,-4218.76947008,7.443e-05,2]
[404435352,1770138637890,-4218.76947008,7.443e-05,2]
[404435353,1770138637900,-4218.76947008,7.443e-05,2]
[404435355,1770138637909,-4218.76947008,7.443e-05,2]
[404435357,1770138637918,-4218.76947008,7.443e-05,2]
[404435359,1770138637927,-4218.76947008,7.443e-05,2]
[404435361,1770138637937,-4218.76947008,7.443e-05,2]
[404435363,1770138637946,-4218.76947008,7.443e-05,2]
[404435365,1770138637955,-4218.76947008,7.443e-05,2]
[404435367,1770138637964,-4218.76947008,7.443e-05,2]
[404435369,1770138637973,-4218.76947008,7.443e-05,2]
[404435371,1770138637982,-4218.76947008,7.443e-05,2]
[404435373,1770138637991,-4218.76947008,7.443e-05,2]
[404435375,1770138638000,-4218.76947008,7.443e-05,2]
[404435377,1770138638009,-4218.76947008,7.443e-05,2]
[404435379,1770138638019,-4218.76947008,7.443e-05,2]
[404435381,1770138638028,-4218.76947008,7.443e-05,2]
[404435383,1770138638037,-4218.76947008,7.443e-05,2]
[404435385,1770138638047,-4218.76947008,7.443e-05,2]
[404435387,1770138638058,-4218.76947005,7.443e-05,2]
[404435389,1770138638067,-3200497.73,7.444e-05,2]
[404435391,1770138638076,-236.19,7.5e-05,2]
[404435393,1770138638085,-7585.48181311,7.5e-05,2]
[404435395,1770138638095,-300.14531472,7.5e-05,2]
[404435397,1770138638104,-611.26150633,7.5e-05,2]
[404435399,1770138638114,-60048.31855138,7.535e-05,2]
[404435401,1770138638123,-1000.0,7.544e-05,2]
[404435403,1770138638132,-215.41950212,7.544e-05,2]
[404435405,1770138638142,-308.4703,7.545e-05,2]
[404435407,1770138638151,-1227.41463026,7.643e-05,2]
[404435408,1770138638161,-1000.0,7.644e-05,2]
[404435410,1770138638171,-470.122,7.645e-05,2]
[404435412,1770138638180,-61542.61000504,7.645e-05,2]
[404435414,1770138638190,-544.76962748,7.656e-05,2]
[404435416,1770138638199,-9999.99,7.7e-05,2]
[404435418,1770138638209,-299.99,7.7e-05,2]
[404435420,1770138638219,-150.99,7.7e-05,2]
[404435422,1770138638229,-9999.99,7.7e-05,2]
[404435424,1770138638239,-999.99,7.7e-05,2]
[404435426,1770138638248,-150.99,7.7e-05,2]
[404435428,1770138638258,-4999.99,7.7e-05,2]
[404435430,1770138638267,-343.78,7.7e-05,2]
[404435432,1770138638276,-23906.99,7.7e-05,2]
[404435434,1770138638285,-9999.99,7.7e-05,2]
[404435436,1770138638294,-9999.99,7.7e-05,2]
[404435438,1770138638305,-9999.99,7.7e-05,2]
[404435440,1770138638315,-25417.35,7.817e-05,2]
[404435442,1770138638325,-12230.872634,7.945e-05,2]
[404435444,1770138638335,-250.0,8.132e-05,2]
[404435446,1770138638345,-250.0,8.14e-05,2]
[404435448,1770138638355,-193.0,8.14e-05,2]
[404435450,1770138638364,-420.0,8.15e-05,2]
[404435452,1770138638373,-420.0,8.15e-05,2]
[404435454,1770138638382,-1680.0,8.15e-05,2]
[404435456,1770138638391,-162.0,8.16e-05,2]
[404435457,1770138638400,-12618.140757,8.178e-05,2]
[404435458,1770138638409,-1168.0,8.187e-05,2]
[404435459,1770138638418,-255.0,8.187e-05,2]
[404435460,1770138638427,-250.0,8.189e-05,2]
[404435461,1770138638435,-500.0,8.219e-05,2]
[404435462,1770138638444,-1949.37,8.219e-05,2]
[404435463,1770138638453,-431.0,8.666e-05,2]
[404435464,1770138638462,-258.0,8.666e-05,2]
[404435465,1770138638472,-587.0,8.965e-05,2]
[404435466,1770138638480,-2351.0,8.965e-05,2]
[404435467,1770138638490,-587.0,8.965e-05,2]
[404435469,1770138638499,-500.0,8.966e-05,2]
[404435471,1770138638508,-433.0,9.006e-05,2]
[404435473,1770138638517,-166.66,9.235e-05,2]
[404435475,1770138638526,-166.66,9.54e-05,2]
[404435477,1770138638536,-250.0,9.768e-05,2]
[404435503,1770138638776,-166.66,9.845e-05,2]
[404435505,1770138638787,-823.0,9.862e-05,2]
[404435507,1770138638797,-3292.0,9.862e-05,2]
[404435509,1770138638807,-806.0,9.862e-05,2]
[404435511,1770138638817,-736.0,9.907e-05,2]
[404435513,1770138638827,-98454.00131175,0.0001,2]
[404435515,1770138638837,-151.0,0.0001,2]
[404435517,1770138638846,-179.394524,0.0001,2]
[404435519,1770138638856,-151.0,0.0001,2]
[404435521,1770138638865,-151.0,0.0001,2]
[404435523,1770138638875,-151.0,0.0001,2]
[404435525,1770138638884,-151.0,0.0001,2]
[404435526,1770138638897,-151.0,0.0001,2]
[404435528,1770138638906,-200.0,0.0001,2]
[404435530,1770138638915,-151.0,0.0001,2]
[404435532,1770138638925,-151.0,0.0001,2]
[404435534,1770138638935,-151.0,0.0001,2]
[404435536,1770138638944,-151.0,0.0001,2]
[404435539,1770138638954,-151.0,0.0001,2]
[404435540,1770138638965,-151.0,0.0001,2]
[404435543,1770138638975,-151.0,0.0001,2]
[404435545,1770138638984,-151.0,0.0001,2]
[404435546,1770138638994,-151.0,0.0001,2]
[404435548,1770138639004,-151.0,0.0001,2]
[404435550,1770138639014,-151.0,0.0001,2]
[404435551,1770138639023,-151.0,0.0001,2]
[404435552,1770138639034,-151.0,0.0001,2]
[404435553,1770138639043,-151.0,0.0001,2]
[404435554,1770138639058,-151.0,0.0001,2]
[404435555,1770138639067,-151.0,0.0001,2]
[404435556,1770138639077,-151.0,0.0001,2]
[404435557,1770138639086,-151.0,0.0001,2]
[404435558,1770138639096,-151.0,0.0001,2]
[404435560,1770138639106,-151.0,0.0001,2]
[404435561,1770138639116,-151.0,0.0001,2]
[404435562,1770138639126,-151.0,0.0001,2]
[404435563,1770138639136,-151.0,0.0001,2]
[404435564,1770138639146,-151.0,0.0001,2]
[404435565,1770138639156,-500.0,0.0001,2]
[404435566,1770138639166,-151.0,0.0001,2]
[404435567,1770138639176,-500.0,0.0001,2]
[404435568,1770138639186,-151.0,0.0001,2]
[404435569,1770138639196,-500.0,0.0001,2]
[404435570,1770138639205,-200.0,0.0001,2]
[404435571,1770138639215,-500.0,0.0001,2]
[404435572,1770138639224,-176.08748064,0.0001,2]
[404435573,1770138639233,-500.0,0.0001,2]
[404435574,1770138639243,-500.0,0.0001,2]
[404435575,1770138639252,-500.0,0.0001,2]
[404435576,1770138639261,-500.0,0.0001,2]
[404435577,1770138639271,-500.0,0.0001,2]
[404435578,1770138639280,-500.0,0.0001,2]
[404435579,1770138639290,-500.0,0.0001,2]
[404435580,1770138639299,-500.0,0.0001,2]
[404435581,1770138639310,-15200.0,0.0001,3]
[404435582,1770138639320,-150.01081079,0.0001,2]
[404435583,1770138639330,-500.0,0.0001,2]
[404435584,1770138639339,-500.0,0.0001,2]
[404435585,1770138639349,-500.0,0.0001,2]
[404435586,1770138639360,-500.0,0.0001,2]
[404435587,1770138639369,-500.0,0.0001,2]
[404435588,1770138639379,-500.0,0.0001,2]
[404435589,1770138639388,-500.0,0.0001,2]
[404435590,1770138639397,-500.0,0.0001,2]
[404435591,1770138639406,-500.0,0.0001,2]
[404435592,1770138639415,-500.0,0.0001,2]
[404435593,1770138639424,-500.0,0.0001,2]
[404435594,1770138639434,-578.73215141,0.0001,2]
[404435595,1770138639443,-578.73215141,0.0001,2]
[404435596,1770138639454,-166.66,0.0001015,2]
[404435597,1770138639463,-746.22,0.0001024,2]
[404435598,1770138639474,-166.66,0.00010455,2]
[404435599,1770138639485,-200.82,0.00010523,2]
[404435600,1770138639495,-166.66,0.0001076,2]
[404435601,1770138639506,-746.22,0.00010809,2]
[404435602,1770138639516,-1152.0,0.00010848,2]
[404435603,1770138639526,-4609.0,0.00010848,2]
[404435604,1770138639535,-935.0,0.00010897,2]
[404435605,1770138639544,-500.0,0.00010959,2]
[404435606,1770138639555,-1227.41463026,0.00011098,3]
[404435607,1770138639565,-3008.7440237,0.00011099,2]
[404435608,1770138639574,-3008.74402367,0.00011099,2]
[404435609,1770138639584,-3008.74402367,0.00011099,2]
[404435610,1770138639593,-3008.74402367,0.00011099,2]
[404435611,1770138639602,-150.01081079,0.00011317,2]
[404435612,1770138639611,-746.22,0.00011378,2]
[404435613,1770138639620,-500.0,0.00011479,2]
[404435614,1770138639630,-1949.37,0.00011507,2]
[404435615,1770138639639,-12269.46,0.00011515,2]
[404435616,1770138639648,-13564.57,0.00011515,2]
[404435617,1770138639657,-150.0,0.00011515,2]
[404435618,1770138639667,-200.0,0.00011551,2]
[404435619,1770138639676,-8610.36059333,0.0001166,2]
[404435620,1770138639685,-151.0,0.00011783,2]
[404435621,1770138639695,-702.0,0.00011933,2]
[404435622,1770138639704,-2912.0,0.00011933,2]
[404435623,1770138639713,-746.22,0.00011947,2]
[404435624,1770138639722,-3008.74402367,0.00012067,2]
[404435625,1770138639731,-1144.86492537,0.0001231,2]
[404435626,1770138639740,-746.22,0.00012516,2]
[404435627,1770138639749,-150.01081079,0.00012633,2]
[404435628,1770138639759,-7585.48181309,0.0001265,2]
[404435629,1770138639769,-300.14531472,0.0001265,2]
[404435630,1770138639778,-611.26150631,0.0001265,2]
[404435631,1770138639787,-11650.122,0.0001266,2]
[404435632,1770138639797,-179.39452399,0.00012697,2]
[404435633,1770138639807,-627.41495303,0.00012821,2]
[404435634,1770138639816,-1103.0,0.00012958,2]
[404435635,1770138639826,-416.0,0.00013,2]
[404435636,1770138639835,-746.22,0.00013085,2]
[404435637,1770138639845,-3008.74402367,0.00013233,2]
[404435638,1770138639854,-1103.0,0.0001364,2]
[404435639,1770138639863,-746.22,0.00013653,2]
[404435640,1770138639873,-200.0,0.00013699,2]
[404435641,1770138639882,-500.0,0.00013699,2]
[404435642,1770138639894,-746.22,0.00014222,2]
[404435643,1770138639903,-1103.0,0.00014322,2]
[404435644,1770138639912,-35766.0,0.00014393,2]
[404435645,1770138639922,-3008.74402367,0.000144,2]
[404435646,1770138639931,-16643.0,0.00014415,2]
[404435647,1770138639941,-160.0,0.00014424,2]
[404435648,1770138639949,-746.22,0.00014791,2]
[404435649,1770138639961,-209.40437684,0.0001482,2]
[404435650,1770138639971,-721.12765535,0.0001482,2]
[404435651,1770138639980,-500.0,0.0001482,2]
[404435652,1770138639989,-500.0,0.0001482,2]
[404435653,1770138639998,-500.0,0.0001482,2]
[404435654,1770138640008,-500.0,0.0001482,2]
[404435655,1770138640017,-160.3826751,0.0001482,2]
[404435656,1770138640027,-500.0,0.0001482,2]
[404435657,1770138640036,-500.0,0.0001482,2]
[404435658,1770138640046,-500.0,0.0001482,2]
[404435659,1770138640056,-500.0,0.0001482,2]
[404435660,1770138640064,-500.0,0.0001482,2]
[404435661,1770138640074,-500.0,0.0001482,2]
[404435662,1770138640083,-200.0,0.0001482,2]
[404435663,1770138640092,-500.0,0.0001482,2]
[404435664,1770138640101,-174.61919141,0.0001482,2]
[404435665,1770138640111,-578.20924308,0.0001482,2]
[404435666,1770138640120,-322.6107,0.0001482,2]
[404435667,1770138640129,-309.29654756,0.0001482,2]
[404435668,1770138640139,-217.15233878,0.00014875,2]
[404435669,1770138640149,-225.18697532,0.0001493,2]
[404435670,1770138640158,-720.83,0.00014984,2]
[404435671,1770138640168,-233.51889341,0.00014985,2]
[404435672,1770138640178,-221.5122,0.00015,2]
[404435673,1770138640187,-1103.0,0.00015038,2]
[404435674,1770138640197,-242.15909246,0.0001504,2]
[404435675,1770138640206,-900.0,0.00015068,2]
[404435676,1770138640215,-251.11897888,0.00015095,2]
[404435677,1770138640224,-260.4103811,0.0001515,2]
[404435678,1770138640234,-200.82,0.00015162,2]
[404435679,1770138640244,-270.0455652,0.00015205,2]
[404435680,1770138640252,-280.03725112,0.0001526,2]
[404435681,1770138640262,-150.01081079,0.00015267,2]
[404435682,1770138640271,-290.39862941,0.00015315,2]
[404435683,1770138640280,-746.22,0.0001536,2]
[404435684,1770138640289,-200.0,0.00015368,2]
[404435685,1770138640299,-181.08010149,0.00015368,2]
[404435686,1770138640309,-301.1433787,0.0001537,2]
[404435687,1770138640319,-500.0,0.00015479,2]
[404435688,1770138640328,-3008.74402367,0.00015567,2]
[404435689,1770138640338,-150.0,0.00015584,7]
[404435690,1770138640347,-515.724223,0.00015584,7]
[404435691,1770138640357,-881.448447,0.00015584,7]
[404435692,1770138640365,-1247.172671,0.00015584,7]
[404435693,1770138640376,-1612.896894,0.00015584,7]
[404435694,1770138640386,-1978.621118,0.00015584,7]
[404435695,1770138640396,-2344.345342,0.00015584,7]
[404435696,1770138640406,-2710.069565,0.00015584,7]
[404435697,1770138640415,-3075.793789,0.00015584,7]
[404435698,1770138640423,-3441.518013,0.00015584,7]
[404435699,1770138640433,-500.0,0.00015857,2]
[404435700,1770138640443,-9681.08,0.00015905,2]
[404435701,1770138640451,-200.0,0.00015916,2]
[404435702,1770138640460,-187.78006525,0.00015916,2]
[404435703,1770138640469,-160.0,0.00016,3]
[404435704,1770138640478,-4438.32,0.00016116,2]
[404435705,1770138640488,-334.5472959,0.00016189,2]
[404435706,1770138640497,-900.0,0.00016438,2]
[404435707,1770138640506,-200.0,0.00016464,2]
[404435708,1770138640515,-194.72792766,0.00016464,2]
[404435709,1770138640523,-150.01081079,0.00016583,2]
[404435710,1770138640532,-200.82,0.00016671,2]
[404435711,1770138640542,-769.0,0.00016676,2]
[404435712,1770138640551,-769.0,0.00016676,2]
[404435713,1770138640560,-165.71,0.00016712,2]
[404435714,1770138640570,-3008.74402367,0.00016733,2]
[404435715,1770138640579,-1000.0,0.00016836,7]
[404435716,1770138640588,-3481.0,0.00016954,2]
[404435717,1770138640597,-1410.0,0.00016955,2]
[404435718,1770138640606,-1335.0,0.00016955,2]
[404435719,1770138640615,-1271.0,0.00016955,2]
[404435720,1770138640624,-150.0,0.00016955,2]
[404435721,1770138640633,-917.0,0.00016955,2]
[404435722,1770138640642,-1205.0,0.00016955,2]
[404435723,1770138640651,-3253.0,0.00016955,2]
[404435724,1770138640660,-2445.0,0.00016955,2]
[404435725,1770138640669,-200.0,0.00016983,2]
[404435726,1770138640678,-366.60248148,0.00017,5]
[404435727,1770138640687,-611.94419717,0.00017,2]
[404435728,1770138640697,-500.0,0.00017,5]
[404435729,1770138640706,-500.0,0.00017,2]
[404435730,1770138640716,-500.0,0.00017,2]
[404435731,1770138640725,-500.0,0.00017,5]
[404435732,1770138640734,-5000.0,0.00017,2]
[404435733,1770138640742,-500.0,0.00017,2]
[404435734,1770138640751,-160.0,0.00017,7]
[404435735,1770138640760,-200.0,0.00017012,2]
[404435736,1770138640769,-201.93286099,0.00017012,2]
[404435737,1770138640778,-500.0,0.00017014,2]
[404435738,1770138640787,-839.0,0.0001704,2]
[404435739,1770138640796,-5888.0,0.00017044,2]
[404435740,1770138640806,-769.0,0.0001707,2]
[404435741,1770138640815,-769.0,0.00017072,2]
[404435742,1770138640823,-200.0,0.00017154,2]
[404435743,1770138640832,-200.0,0.00017184,2]
[404435744,1770138640840,-200.0,0.00017201,2]
[404435745,1770138640849,-5888.0,0.00017222,2]
[404435746,1770138640858,-1000.0,0.0001726,2]
[404435747,1770138640867,-5888.0,0.00017323,2]
[404435748,1770138640876,-5888.0,0.00017338,2]
[404435749,1770138640885,-5888.0,0.00017362,2]
[404435750,1770138640898,-3240.0,0.00017367,2]
[404435751,1770138640907,-5888.0,0.00017379,2]
[404435752,1770138640916,-200.0,0.00017444,2]
[404435753,1770138640925,-5888.0,0.0001747,2]
[404435754,1770138640935,-200.0,0.00017492,2]
[404435755,1770138640944,-3000.0,0.000175,6]
[404435756,1770138640953,-1000.0,0.00017534,2]
[404435757,1770138640962,-200.0,0.00017552,2]
[404435758,1770138640971,-346.92554585,0.00017558,2]
[404435759,1770138640980,-747.8093786,0.00017559,2]
[404435760,1770138640989,-599.60298507,0.00017559,2]
[404435761,1770138640999,-200.0,0.0001756,2]
[404435762,1770138641008,-209.40437684,0.0001756,2]
[404435763,1770138641017,-200.0,0.00017569,2]
[404435764,1770138641028,-5888.0,0.0001757,2]
[404435765,1770138641039,-3000.0,0.000176,6]
[404435766,1770138641049,-152.0,0.00017607,3]
[404435767,1770138641059,-3000.0,0.000177,6]
[404435768,1770138641068,-2000.0,0.000177,2]
[404435769,1770138641078,-1000.0,0.00017736,2]
[404435770,1770138641088,-157.95285948,0.0001774,2]
[404435771,1770138641098,-150.0,0.00017742,2]
[404435772,1770138641107,-1000.0,0.00017742,2]
[404435773,1770138641117,-1000.0,0.00017765,2]
[404435774,1770138641126,-1000.0,0.0001779,2]
[404435775,1770138641135,-1000.0,0.00017795,2]
[404435776,1770138641144,-2000.0,0.000178,2]
[404435777,1770138641154,-3000.0,0.000178,6]
[404435778,1770138641163,-1000.0,0.00017804,2]
[404435779,1770138641172,-250.0,0.00017808,5]
[404435780,1770138641182,-250.0,0.00017808,5]
[404435781,1770138641192,-250.0,0.00017808,5]
[404435782,1770138641201,-250.0,0.00017808,5]
[404435783,1770138641211,-250.0,0.00017808,5]
[404435784,1770138641220,-318.936746,0.00017808,5]
[404435785,1770138641230,-1000.0,0.00017808,2]
[404435786,1770138641239,-150.0,0.00017818,2]
[404435787,1770138641248,-2000.0,0.0001782,2]
[404435788,1770138641257,-2000.0,0.0001782,2]
[404435789,1770138641267,-150.0,0.00017826,2]
[404435790,1770138641276,-1000.0,0.00017837,2]
[404435791,1770138641286,-200.0,0.00017855,2]
[404435792,1770138641295,-200.0,0.00017856,2]
[404435793,1770138641305,-200.0,0.00017862,2]
[404435794,1770138641314,-150.0,0.00017863,2]
[404435795,1770138641324,-839.0,0.00017868,2]
[404435796,1770138641333,-150.0,0.00017886,2]
[404435797,1770138641342,-150.0,0.00017894,2]
[404435798,1770138641351,-10000.0,0.000179,2]
[404435799,1770138641360,-5000.0,0.000179,2]
[404435800,1770138641369,-12478.67792849,0.000179,3]
[404435801,1770138641379,-179.39452399,0.000179,2]
[404435802,1770138641388,-765.06502839,0.000179,2]
[404435803,1770138641397,-150.01081079,0.000179,2]
[404435804,1770138641407,-3453.0,0.000179,6]
[404435805,1770138641416,-4501.55869548,0.000179,5]
[404435806,1770138641424,-3008.74402367,0.000179,2]
[404435807,1770138641434,-7585.48181309,0.000179,2]
[404435808,1770138641443,-300.14531472,0.000179,2]
[404435809,1770138641453,-611.26150631,0.000179,2]
[404435810,1770138641462,-500.0,0.000179,2]
[404435811,1770138641471,-500.0,0.000179,2]
[404435812,1770138641483,-500.0,0.000179,2]
[404435813,1770138641493,-500.0,0.000179,2]
[404435814,1770138641502,-500.0,0.000179,2]
[404435815,1770138641511,-500.0,0.000179,2]
[404435816,1770138641519,-500.0,0.000179,2]
[404435817,1770138641528,-500.0,0.000179,2]
[404435818,1770138641537,-500.0,0.000179,2]
[404435819,1770138641546,-500.0,0.000179,2]
[404435820,1770138641554,-5888.0,0.00017901,2]
[404435821,1770138641563,-1000.0,0.00017913,2]
[404435822,1770138641572,-150.0,0.00017921,2]
[404435823,1770138641581,-1000.0,0.00017923,2]
[404435824,1770138641591,-1000.0,0.00017934,2]
[404435825,1770138641600,-983.42551089,0.00017935,2]
[404435826,1770138641609,-1000.0,0.00017938,2]
[404435827,1770138641618,-1000.0,0.00017942,2]
[404435828,1770138641627,-1000.0,0.00017943,2]
[404435829,1770138641636,-400.7491143,0.0001797,2]
[404435830,1770138641645,-150.0,0.0001797,2]
[404435831,1770138641654,-400.0,0.0001797,2]
[404435832,1770138641663,-562.28195765,0.00017973,2]
[404435833,1770138641672,-500.0,0.00017973,2]
[404435834,1770138641681,-500.0,0.00017973,2]
[404435835,1770138641690,-166.51015303,0.00017973,2]
[404435836,1770138641699,-152.0,0.00017973,4]
[404435837,1770138641708,-1000.0,0.00017979,2]
[404435838,1770138641717,-1000.0,0.00017982,2]
[404435839,1770138641726,-930.52052436,0.00017982,2]
[404435840,1770138641735,-1000.0,0.00017983,2]
[404435841,1770138641745,-1000.0,0.00017985,2]
[404435842,1770138641754,-1000.0,0.00017989,2]